Cogmind - Beta 15 @@@ ROGUE MODE // 2025.06.04 @ 21:29:45 Player: Sunvar Result: Destroyed by WM-LQW(j) with Overtuned Pulse Rifle Performance ------------- Evolutions (0) 0 Regions Visited (3) 600 Robots Destroyed (35) 175 Value Destroyed (875) 875 Prototype IDs (19) 380 Alien Tech Used (0) 0 Bonus (1051) 1051 TOTAL SCORE: 3081 Bonus ------- Follower Combat Kills 389 Registered with UFD 300 Met Optimus in HQ 500 Friendly Fire -138 Cogmind --------- Core Integrity 0/250 Matter 220/300 Energy 157/290 System Corruption 0% Temperature Hot (254) Movement Treading (320) Ox2 Location -9/Scraptown Parts ------- > --- POWER (1) -------- Improved Deuterium Engine > --- PROPULSION (2) --- Medium Treads Compact Wheel > --- UTILITY (2) ------ High-capacity Storage Unit Hardened Light Armor Plating > --- WEAPON (2) ------- Heavy Plasma Cannon Voltaic Drivehammer > --- INVENTORY (20) --- Light Deuterium Engine Light Nuclear Core Light Treads Light Treads VTOL Module Advanced Sensor Array Seismic Detector Seismic Detector ECM Suite Hardened Light Armor Plating Makeshift Hacking Suite Makeshift Hacking Suite Makeshift Hacking Suite System Shield Coil Gun Grenade Launcher Grenade Launcher LU-1G1's Laser Shovel Plasma Cutter Great Maul Peak State ------------ > --- POWER ------------ Improved Deuterium Engine > --- PROPULSION ------- Medium Treads Compact Wheel > --- UTILITY ---------- High-capacity Storage Unit Hardened Light Armor Plating > --- WEAPON ----------- Heavy Plasma Cannon Voltaic Drivehammer > --- INVENTORY -------- Light Deuterium Engine Light Nuclear Core Light Treads Light Treads VTOL Module Advanced Sensor Array Seismic Detector Seismic Detector ECM Suite Hardened Light Armor Plating Hacking Suite Makeshift Hacking Suite System Shield Subdweller Beam Cannon Coil Gun Grenade Launcher Grenade Launcher LU-1G1's Laser Shovel Plasma Cutter Great Maul [Rating: 32] Favorites ----------- Power Ion Engine Engine Ion Engine Propulsion Light Treads Treads Light Treads Leg Aluminum Leg Wheel Compact Wheel Utility High-capacity Storage Unit Device Seismic Detector Storage High-capacity Storage Unit Protection Hardened Light Armor Plating Weapon Light Assault Rifle Energy Gun Small Laser Energy Cannon Subdweller Beam Cannon Ballistic Gun Light Assault Rifle Launcher Grenade Launcher Special Weapon Voltaic Drivehammer Impact Weapon Great Maul Build | -11 -10 -10 -9 ------- Run | Yrd Mat Sub Scr Slots Evolved . | . . . . Power . | . . . . Propulsion . | . . . . Utility . | . . . . Weapon . | . . . . Parts Attached 36 | 8 15 5 8 Power 4 | 1 2 . 1 Engine 4 | 1 2 . 1 Core . | . . . . Reactor . | . . . . Propulsion 13 | 2 7 3 1 Treads 4 | . 3 . 1 Leg 6 | 2 4 . . Wheel 3 | . . 3 . Hover . | . . . . Flight . | . . . . Utility 6 | 2 2 1 1 Device 3 | 1 1 1 . Storage 2 | 1 1 . . Processor . | . . . . Hackware . | . . . . Protection 1 | . . . 1 Artifact . | . . . . Weapon 13 | 3 4 1 5 Energy Gun 2 | 1 1 . . Energy Cannon 4 | . 2 1 1 Ballistic Gun 3 | 2 1 . . Ballistic Cannon . | . . . . Launcher 1 | . . . 1 Special Weapon 2 | . . . 2 Impact Weapon 1 | . . . 1 Slashing Weapon . | . . . . Piercing Weapon . | . . . . Special Melee Weapon . | . . . . Unidentified Prototypes 2 | . . 1 1 Parts Lost 4 | . 3 1 . Power 1 | . 1 . . Propulsion 2 | . 1 1 . Utility . | . . . . Weapon 1 | . 1 . . Highest Loss Streak 1 | . 1 1 . To Critical Strikes . | . . . . Average Backups 15 | 4 7 17 18 Power 1 | . 1 2 1 Propulsion 3 | 2 2 4 3 Utility 4 | . 1 4 7 Weapon 5 | . 2 6 5 Tool/Special . | . . . . Unused Backups 27 | . 2 1 24 Power 3 | . . . 3 Propulsion 5 | . 1 . 4 Utility 9 | . . . 9 Weapon 8 | . . 1 7 Tool/Special 2 | . 1 . 1 Average Slot Usage (%) 99 | . 99 99 99 Engine 13 | . 13 14 14 Treads 17 | . 20 17 13 Leg 2 | . 7 . . Wheel 8 | . . 10 14 Device 12 | . 14 13 8 Storage 14 | . 14 14 14 Protection 1 | . . . 5 Energy Cannon 12 | . 10 14 13 Ballistic Gun 12 | . 14 14 8 Impact Weapon 1 | . . . 4 Peak Build Rating 32 | 7 8 14 32 Average Rating 11 | 5 7 12 15 On Entrance 7 | . 7 8 13 Naked Turns . | . . . . Heaviest Build 78 | 14 50 55 78 Greatest Support 40 | 20 40 40 16 Greatest Overweight (x) 4 | . 1 3 4 Average Overweight (x) 1 | . . 2 3 Largest Inventory Capacity 20 | 8 20 20 20 Average Capacity 17 | 7 10 20 20 Most Carried 20 | 6 13 20 20 Average Carried 15 | 4 7 17 19 Final Capacity 20 | 8 20 20 20 Final Carried 20 | 6 13 19 20 Class Distribution -------------------- 98% | Mutant Dominant Class ---------------- Mutant | -10/Materials Mutant | -10/Subcaves Mutant | -9/Scraptown Resources | -11 -10 -10 -9 ----------- Run | Yrd Mat Sub Scr Matter Collected 810 | 313 307 102 88 Remotely . | . . . . Salvage Created 1360 | 187 788 . 385 Parts 88 | 18 53 . 17 Haulers Intercepted 2 | . 2 . . Recyclers Shooed 1 | 1 . . . Parts Field Recycled . | . . . . Retrieved Matter . | . . . . Parts Self-Destructed 15 | . . 15 . Prevented . | . . . . Kills | -11 -10 -10 -9 ------- Run | Yrd Mat Sub Scr Combat Hostiles Destroyed 22 | . 16 . 6 Guns 6 | . 6 . . Cannons 13 | . 10 . 3 AOE 3 | . . . 3 Classes Destroyed 11 | 2 6 . 3 Worker 2 | . 2 . . Builder 1 | . 1 . . Tunneler 4 | 4 . . . Hauler 2 | . 2 . . Recycler 1 | 1 . . . Operator 2 | . 2 . . Swarmer 3 | . 3 . . Grunt 13 | . 13 . . Subdweller 1 | . . . 1 Ranger 1 | . . . 1 Scrapper 5 | . . . 5 Best Kill Streak 5 | 5 5 . 4 Combat Bots Only 4 | . 4 . 4 Max Kills in Single Turn 2 | 1 2 . 2 Gunslinging . | . . . . Exploded 2 | . . . 2 Melee . | . . . . Uniques/NPCs Destroyed . | . . . . Combat | -11 -10 -10 -9 -------- Run | Yrd Mat Sub Scr Hostile Shots Fired 132 | . 105 7 20 Missed 24 | . 18 2 4 Hits 108 | . 87 5 16 Melee 1 | . . . 1 Projectile 107 | . 87 5 15 Critical Strikes 2 | . . . 2 Damage Taken 1449 | . 953 151 345 Core 253 | . 151 37 65 Absorbed by Shields . | . . . . Core Remaining (%) 100 | 100 . . . Volleys Fired 132 | 11 83 26 12 Largest 2 | 2 2 1 2 Hottest 170 | 60 80 80 170 Shots Fired 215 | 22 154 26 13 Gun 124 | 22 102 . . Cannon 86 | . 52 26 8 Launcher 5 | . . . 5 Special . | . . . . Kinetic 82 | 11 71 . . Thermal 128 | 11 83 26 8 Explosive 5 | . . . 5 Electromagnetic . | . . . . Robot Hit Streak 11 | 7 11 . 7 Robot Miss Streak 4 | 2 4 . 3 Penetration Max . | . . . . Secondary Targets 1 | . 1 . . Max Gunslinging Chain 1 | . 1 . . Shots Hit Robots 117 | 15 95 . 7 Core Hits 52 | 6 34 . 12 Critical Kills . | . . . . Critical Parts Destroyed . | . . . . Critical Strikes . | . . . . Melee Attacks 3 | . . . 3 Impact 3 | . . . 3 Slashing . | . . . . Piercing . | . . . . Sneak Attacks . | . . . . Combat Hostiles . | . . . . Follow-up Attacks . | . . . . Damage Inflicted 2124 | 172 1311 . 641 Guns 867 | 172 695 . . Cannons 742 | . 616 . 126 Explosions 456 | . . . 456 Melee 59 | . . . 59 Ramming . | . . . . Kinetic 511 | 83 428 . . Thermal 1098 | 89 883 . 126 Explosive 456 | . . . 456 Electromagnetic . | . . . . Impact 59 | . . . 59 Slashing . | . . . . Piercing . | . . . . Highest Corruption 1 | . 1 1 1 Average Corruption 1 | . 1 1 1 Corruption Purged . | . . . . Corruption Blocked . | . . . . Effects 15 | . 4 11 . Message Errors 3 | . 2 1 . Matter Fused 5 | . 1 4 . Heat Flow Errors 2 | . 1 1 . Energy Discharges 2 | . . 2 . Data Loss (minor) 2 | . . 2 . Alerts 1 | . . 1 . Overload Shots . | . . . . Overflow Damage 58 | . . . 58 Projectiles . | . . . . Explosions . | . . . . Melee 58 | . . . 58 Knockbacks 1 | . . . 1 Impact 1 | . . . 1 Kinetic . | . . . . Secondary . | . . . . Self-Inflicted Damage 31 | . . . 31 Shots 1 | . . . 1 Rammed . | . . . . Targets Rammed . | . . . . Kicked . | . . . . Crushed . | . . . . Highest Temperature 336 | . 336 106 217 Average Temperature 98 | . 99 66 95 Received Heat Transfer 686 | . 432 24 230 Effects 2 | . 2 . . Interference 2 | . 2 . . Siege Activations . | . . . . Martial Activations . | . . . . Shielding Activations . | . . . . Robots Disrupted . | . . . . Combat Hostiles . | . . . . Robots Corrupted . | . . . . Combat Hostiles . | . . . . Parts Fried . | . . . . Impact Corruptions 1 | . . . 1 Robots Melted . | . . . . Combat Hostiles . | . . . . Parts Melted 6 | . 2 . 4 Heat Transferred 2231 | 200 1895 . 136 Parts Sabotaged . | . . . . Parts Stolen . | . . . . Parts Stripped . | . . . . Power Chain Reactions . | . . . . Alert | -11 -10 -10 -9 ------- Run | Yrd Mat Sub Scr Maximum Alert Level 1 | . 1 . . Low Security (%) 95 | 100 95 . . Level 1 4 | . 4 . . Level 2 . | . . . . Level 3 . | . . . . Level 4 . | . . . . Level 5 . | . . . . High Security . | . . . . Max Security . | . . . . Peak Influence 206 | 10 206 . . Initial . | . . . . Average 90 | 2 97 . . Influence Increases 586 | 25 540 21 . Destroy 0b10 Robot/C 340 | . 320 20 . Destroy 0b10 Robot/NC 60 | 25 35 . . Destroy Leader 74 | . 74 . . Allied During Kill 1 | . . 1 . Successful Hack 4 | . 4 . . Select Force Hacks 60 | . 60 . . Disable Machine 15 | . 15 . . Destroy Structure 2 | . 2 . . Lose Combat Pursuer 30 | . 30 . . Influence Decreases 586 | 25 445 116 . Entered New Map 47 | . . 47 . Time Decay 509 | 25 415 69 . Lost Part 30 | . 30 . . Squads Dispatched 4 | . 4 . . Investigation 3 | . 3 . . Extermination . | . . . . Reinforcement 1 | . 1 . . Assault . | . . . . Garrison . | . . . . Intercept . | . . . . Searches Triggered . | . . . . Construction Impeded . | . . . . Haulers Reinforced . | . . . . Active Scanning Responses . | . . . . Cargo Convoy Interrupts . | . . . . Stealth | -11 -10 -10 -9 --------- Run | Yrd Mat Sub Scr Distress Signals 2 | . 2 . . Communications Jammed . | . . . . Distress Signals . | . . . . Times Spotted 54 | . 29 12 13 Peak Tracking Total 6 | . 6 3 5 Tactical Retreats 1 | . 1 . . Traps | -11 -10 -10 -9 ------- Run | Yrd Mat Sub Scr Traps Triggered 4 | . 3 1 . Indirectly . | . . . . Trap Hack Attempts . | . . . . Triggered . | . . . . Disarmed . | . . . . Reprogrammed . | . . . . Reused . | . . . . Traps Extracted . | . . . . Installed . | . . . . Triggered . | . . . . Machines | -11 -10 -10 -9 ---------- Run | Yrd Mat Sub Scr Machines Disabled 9 | . 1 . 8 Max in Single Turn 1 | . 1 . 1 Machines Repaired . | . . . . Machines Dismantled . | . . . . Machines Sabotaged . | . . . . Overloaded Fab Kills . | . . . . Hacking | -11 -10 -10 -9 --------- Run | Yrd Mat Sub Scr Machines Accessed 10 | . 6 2 2 Terminals 4 | . 4 . . Fabricators . | . . . . Repair Stations . | . . . . Recycling Units 2 | . 2 . . Scanalyzers . | . . . . Garrison Access . | . . . . Total Hacks 22 | . 15 4 3 Successful 14 | . 7 4 3 Failed 8 | . 8 . . Catastrophic . | . . . . Database Lockouts . | . . . . Manual 15 | . 15 . . Terminals 13 | . 13 . . Fabricators . | . . . . Repair Stations . | . . . . Recycling Units 2 | . 2 . . Scanalyzers . | . . . . Garrison Access . | . . . . Terminal Hacks 7 | . . 4 3 Record 5 | . . 3 2 Proto ID Catalog 2 | . . 1 1 Fabricator Hacks . | . . . . Repair Station Hacks . | . . . . Recycling Unit Hacks . | . . . . Scanalyzer . | . . . . Garrison Access Hacks . | . . . . Unauthorized Hacks 7 | . 7 . . Terminals 5 | . 5 . . Botnet 2 | . 2 . . Operators 1 | . 1 . . Skim 2 | . 2 . . Fabricators . | . . . . Repair Stations . | . . . . Recycling Units 2 | . 2 . . Tunnel 2 | . 2 . . Scanalyzers . | . . . . Garrison Access . | . . . . Data Cores Recovered 2 | . 2 . . Used . | . . . . Hacking Detections 4 | . 4 . . Full Trace Events . | . . . . Feedback Events . | . . . . Feedback Blocked . | . . . . Robot Schematics Acquired . | . . . . Robots Built . | . . . . Authchips . | . . . . Time . | . . . . Total Robot Build Rating . | . . . . Part Schematics Acquired . | . . . . Parts Built . | . . . . Authchips . | . . . . Time . | . . . . Total Part Build Rating . | . . . . Parts Repaired . | . . . . Time . | . . . . Parts Recycled . | . . . . Recycled Matter . | . . . . Retrieved Matter . | . . . . Retrieved Components . | . . . . Parts Scanalyzed . | . . . . Part Schematics Acquired . | . . . . Parts Damaged . | . . . . Bothacking | -11 -10 -10 -9 ------------ Run | Yrd Mat Sub Scr Used RIF Installer . | . . . . Robots Hacked . | . . . . Non-combat . | . . . . Combat . | . . . . Robot Hacks Applied . | . . . . Relay Couplers Released . | . . . . Fabnet Peak Effective % . | . . . . Robots Rewired . | . . . . Allies Hacked . | . . . . Hacks Repelled . | . . . . Allies | -11 -10 -10 -9 -------- Run | Yrd Mat Sub Scr Total Allies 15 | . . 15 . Largest Group 14 | . . 14 14 Highest-Rated Group 266 | . . 266 266 Highest-Rated Ally 21 | . . 21 19 Total Orders . | . . . . Ally Attacks 148 | . . 14 134 Total Damage 2521 | . . 265 2256 Kills 23 | . . 3 20 Allies Corrupted . | . . . . Allies Melted 2 | . . . 2 Intel | -11 -10 -10 -9 ------- Run | Yrd Mat Sub Scr Active Infowar (turns) 1928 | 16 781 77 1054 Seismic 1928 | 16 781 77 1054 Robot Analysis Total . | . . . . Derelict Logs Recovered 3 | . . . 3 Drone Launches . | . . . . Drone Recoveries . | . . . . Exploration | -11 -10 -10 -9 ------------- Run | Yrd Mat Sub Scr Turns Passed 5930 | 118 1490 2452 1870 Spaces Moved 3239 | 58 686 1545 950 Core 2 | 2 . . . Treads 737 | . 487 250 . Legs 255 | 56 199 . . Wheels 2245 | . . 1295 950 Hover . | . . . . Flight . | . . . . Fastest Speed 50 | 50 120 130 145 Average Speed 151 | 117 161 151 146 Slowest Speed 240 | 120 240 240 160 Overloaded Moves . | . . . . Propulsion Burnouts . | . . . . Robots Hopped . | . . . . Potential Cave-ins . | . . . . Cave-ins Triggered . | . . . . Exploration Rate (%) 65 | 4 92 87 79 Regions Visited 3 Branch Regions 2 Pre-discovered Areas 4 | . 2 1 1 Known Exits Taken . | . . . . Unknown Exits Taken 3 | 1 1 1 . Scrap Searched 9 | . . 3 6 Spaces Dug 2 | . . 1 1 Terrain Destroyed 32 | . . 2 30 Melee . | . . . . Projectile 3 | . . 2 1 AOE 28 | . . . 28 Terrain Rammed . | . . . . Walls Destroyed . | . . . . Machines Disabled . | . . . . Actions | -11 -10 -10 -9 --------- Run | Yrd Mat Sub Scr Total 4051 | 82 922 1627 1420 Wait 555 | . 106 40 409 Move 3236 | 57 685 1544 950 Hop . | . . . . Pick Up 46 | 5 16 8 17 Fast Attach 15 | 8 3 2 2 Attach 6 | . 5 . 1 Detach 3 | 1 . 1 1 Swap 20 | . 10 3 7 Drop 35 | . 14 3 18 Fire 132 | 11 83 26 12 Melee 3 | . . . 3 Ram . | . . . . Kick . | . . . . Crush . | . . . . Escape Stasis . | . . . . Rewire . | . . . . Trap . | . . . . Miscellaneous . | . . . . Route ------- -11/Scrapyard -10/Materials (discovered 4 exits: [*Mat x2] / [*Min] / *Sub) -10/Subcaves (discovered 4 exits: [*Mat x2] / Rec / *Scr) -9/Scraptown (discovered 1 exit: [*Fac]) History --------- Turn | Location | Event 14 | -11/Scrapyard | Discovered new exit (range 16) 119 | -11/Scrapyard | Entered Materials 314 | -10/Materials | Build established: Mutant 594 | -10/Materials | Discovered new exit (range 14) 660 | -10/Materials | Discovered new exit (range 10) 896 | -10/Materials | Core integrity fell below 50% 924 | -10/Materials | Discovered new exit (range 13) 1395 | -10/Materials | Discovered new exit (range 10) 1609 | -10/Materials | Entered Subcaves 1610 | -10/Subcaves | Approached by a straggling Scientist 1653 | -10/Subcaves | Discovered new exit (range 7) 1686 | -10/Subcaves | Visited triangular shrine 1701 | -10/Subcaves | Found Prototype Device 1701 | -10/Subcaves | Identified V3-11A's Pendant 1706 | -10/Subcaves | Befriended Subdweller 1885 | -10/Subcaves | Shifting Twisted Machinery released Sub. Beam Cannon 1898 | -10/Subcaves | Shifting Twisted Machinery released Shrapnel Trap 1906 | -10/Subcaves | Scientist uncovered a shortcut to Scraptown 2071 | -10/Subcaves | Befriended Subdweller 2157 | -10/Subcaves | Learned location of Zion (-7) 2157 | -10/Subcaves | Met a Zionite searching for "candidates" 2230 | -10/Subcaves | Disturbed a concealed Subdweller 2585 | -10/Subcaves | Discovered new exit (range 8) 2586 | -10/Subcaves | Befriended Subdweller 2586 | -10/Subcaves | Befriended Subdweller 2729 | -10/Subcaves | A Subdweller sparked back to life 2729 | -10/Subcaves | A Subdweller sparked back to life 2729 | -10/Subcaves | A Subdweller sparked back to life 2731 | -10/Subcaves | Befriended Subdweller 2731 | -10/Subcaves | Befriended Subdweller 2731 | -10/Subcaves | Befriended Subdweller 2768 | -10/Subcaves | Visited Clippyterm 2771 | -10/Subcaves | Identified exit to Recycling 2821 | -10/Subcaves | A swath of the cavern ceiling suddenly collapsed 2831 | -10/Subcaves | Befriended Subdweller 2831 | -10/Subcaves | Befriended Subdweller 3026 | -10/Subcaves | Befriended Subdweller 3179 | -10/Subcaves | Visited 4L-MR0's lab 3436 | -10/Subcaves | Ambushed by Subdwellers from Twisted Machinery 3436 | -10/Subcaves | Befriended Subdweller 3436 | -10/Subcaves | Befriended Subdweller 3761 | -10/Subcaves | Befriended Subdweller 3761 | -10/Subcaves | Befriended Subdweller 3775 | -10/Subcaves | A swath of the cavern ceiling suddenly collapsed 3841 | -10/Subcaves | Befriended Subdweller 4061 | -10/Subcaves | Entered Scraptown 4061 | -9/Scraptown | Accompanied by 14 allies 4064 | -9/Scraptown | System corruption cleaned by C-Scrubber 4332 | -9/Scraptown | Delivered V3-11A's Pendant to T0-NE2 in exchange for information 4458 | -9/Scraptown | Discovered new exit (range 13) 4531 | -9/Scraptown | Scanned Subdweller tech in exchange for log data 4535 | -9/Scraptown | Learned Factory garrison access intel 4539 | -9/Scraptown | Learned location of Quarantine (-3) 4541 | -9/Scraptown | Learned 8 Factory zone layouts 4580 | -9/Scraptown | Visited SPCMW 4603 | -9/Scraptown | Visited Shadow of the Wyrm 4674 | -9/Scraptown | Visited Cyclists 4715 | -9/Scraptown | Visited Fellowship of the Rings 4742 | -9/Scraptown | Visited Assassins FH 4786 | -9/Scraptown | Visited UFD Registry 4786 | -9/Scraptown | Registered with UFD as "Hardplate" 4839 | -9/Scraptown | Visited Junk Repository 4908 | -9/Scraptown | Visited Junk Repository 4983 | -9/Scraptown | Visited LU-1G1's Boring Crew 5002 | -9/Scraptown | Visited Scrap Suit Storage 5042 | -9/Scraptown | Visited DA-N13 Charitable Foundation 5057 | -9/Scraptown | Found DCF Scrap (26 items) 5091 | -9/Scraptown | Visited Science Guys 5140 | -9/Scraptown | Visited Scrapoid Research Area 5312 | -9/Scraptown | Met Optimus 5312 | -9/Scraptown | Accepted into 0bPrime 5712 | -9/Scraptown | Civil war broke out across Scraptown 5721 | -9/Scraptown | Found Prototype Special Weapon 5814 | -9/Scraptown | Identified LU-1G1's Laser Shovel 5840 | -9/Scraptown | Found Voltaic Drivehammer 5916 | -9/Scraptown | Core integrity fell below 20% 5931 | -9/Scraptown | Destroyed by WM-LQW(j) with Overtuned Pulse Rifle Last Messages --------------- 05885_ PT-A3B(R) affixes Scrap Shield Fragment to Scrap Shield. 05899_ BL-VSR(R) affixes Scrap Shield Fragment to Scrap Shield. 05901_ PT-A3B(R) suffers critical hit (Burn). 05904_ PT-A3B(R) heat spikes uncontrollably. 05904_ PT-A3B(R) overheating. 05904_ PT-A3B(R) destroyed. 05910_ Mak. Salvage Targeting Computer melted. 05910_ P4-HRE(j) destroyed. 05910_ XO-LPF(h) destroyed. 05912_ 4O-UOM(j) destroyed. 05912_ Sub. Optics melted. 05912_ BL-VSR(R) destroyed. 05913_ WI-08J(j) cannibalizes Salvaging Laser to repair Ovr. Pulse Rifle. 05919_ Critical hit (Burn: +50). 05920_ The unstable cave ceiling collapses. 05922_ WI-08J(j) cannibalizes Aluminum Leg to repair Ovr. Titanium Leg. 05923_ WI-08J(j) cannibalizes Ovr. Titanium Leg to repair Ovr. Titanium Leg. 05928_ WI-08J(j) destroyed. 05931_ Critical hit (Burn: +50). Map ----- +----------------------------------------------------+ | ?????????????????????????????????????????????????? | | ?????????????????????????????????????????????????? | | ?????????????????????????????????????????????????? | | ?????????????????????????????????????????????????? | | ?????????????????????????????????????????????????? | | ?????????????????????????????????????????????????? | | ?????????????????????????????????????????????????? | | ?????????????????????????????????????????????????? | | ?????????????????????????????????????????????????? | | ?????????????????????????????????????????????????? | | ?????????????????????????????????????????????????? | | ?????????????????????????????????????????????????? | | ????????????????????##???????????????????????????? | | ????????????????????#"##?????????????????????????? | | ???????????????????## *####??????????????????????? | | ?????????????????### != #%###????????????????????? | | ?????????????????=[=!*!%=*=!?????????????????????? | | ??????????????????*%=!![%!=%?????????????????????? | | ?????????????????##[ == =??????????????????????? | | ?????????????????? #??????????????????????? | | ##########????????# # #??????????????????????? | | """""""""#????????# &! % #??????????????????????? | | """ X """#????????# =& #??????????????????????? | | " """"#????????# %! &#???????????????????????? | | " ""#???????## !%! ########?????????????????? | | " !!= """#?####### !%=j= @""""""?????????????????? | | ""!%[ ""#?#==!##[= !!%[j! """""?????????????????? | | ! %!] #?#*!*##% [ %*;= ""#????????????????? | | !%!!=% #?#*%!]*=%! ![; "#????????????????? | | ! %[%!]&#?#/]/!== = % ; ""#????????????????? | | !!%=[ #?#] != ** *=% ""#????????????????? | | %*%! #?#*[*! ! =* "#????????????????? | | ###*= ""##?####=; =%= #######????????????????? | | ###%###"####### # =[%%= #???###???????????????? | | """!""" """"" ! "#?? ????????????????? | | == !%* * % [ "#? "????????????????? | | !!= =%= = "#? ""???#???????????? | | * [! *%! "#" "" #???????????? | | %!%[ !%= "#" " ????????????? | | [=[%%[! " ""?????????????? | | """"" """""""""""" %=!*% "##" ""?????????????? | | """""""""""""""""" "!!!! "#?" " ?????????????? | | # ################"!%!! [ #?? "" ????????????? | | #?????????#!!%=[== #??########???????????? | | X"?????????#"=%!=%[*#??#"""""#????????????? | | " "" #?????????#" *!=!#?? !!!!!#????????????? | | "" X"???????###" ! %=!*#? ##"??????????? | | " #########[#" =[![% "# X" #?????????? | | "" ==!!!!= *[=[*= #?????????? | | "" !%=[%*!%=![!"## #?????????? | +----------------------------------------------------+ Best States ------------- Heat Dissipation 25 Energy Generation 16 Energy Capacity 290 Matter Stores 300 Matter Capacity 300 Sight Range 16 Terrain Scan Density 10 Armor Coverage 150 Evasion (%) 55 Recoil Reduction 2 Item Schematics ----------------- None Robot Schematics ------------------ None Fabricated ------------ Nothing Repaired ---------- Nothing Alien Tech Used ----------------- None Achievements -------------- None Challenges ------------ None Game ------ Seed CouplerLongswordAmplifier Manual? 0 Play Time 00:33:59 Cumulative 188.3 hours Start 2025.06.04 @ 20:53:37 End 2025.06.04 @ 21:29:45 Sessions 1 Manual Loads 0 Difficulty Rogue Special Mode None Game No. 127 Rogue 127 Adventurer 0 Explorer 0 Win Type - Total 11 Types 7/0/2/2/0/0/0/0/0/0 Lore% 68 Gallery% 61 Achievement% 58 Wizard Run 0 Options --------- Layout 0 ASCII 0 Keyboard 1 Movement Numpad Keybinds 0 Fullscreen 1 Font 24/Proggy Map View 76x56 Zoom Use 0% Tactical HUD 1 Map Filters NONE Filters NONE Steam 1 RUN: 96bc2a5c-a69a-4977-b0d7-11d749173c12